bitfinex-derivatives/quotes_BNBF0:USTF0_20250116
["timestamp","ask_amount","ask_price","bid_price","bid_amount"]
[1737052257997,0.2802023,713.77,712.91,0.4611702]
[1737052258197,0.2802023,713.77,712.92,0.4611702]
[1737052258395,0.2802023,713.77,712.93,0.4611702]
[1737052258595,0.2802023,713.77,712.94,0.4611702]
[1737052258792,0.2802023,713.77,712.95,0.4611702]
[1737052258996,0.2802023,713.77,712.96,0.4611702]
[1737052259196,0.2802023,713.77,712.97,0.4611702]
[1737052259397,0.2802023,713.77,712.98,0.4611702]
[1737052259600,0.2802023,713.77,712.99,0.4611702]
[1737052259797,0.2802023,713.77,713.0,0.4611702]
[1737052259995,0.2802023,713.77,713.01,0.4611702]
[1737052260200,0.2802023,713.77,713.02,0.4611702]
[1737052260398,0.2802023,713.77,713.03,0.4611702]
[1737052260598,0.2802023,713.77,713.04,0.4611702]
[1737052260793,0.2802023,713.77,712.96,1.118]
[1737052261000,0.2802023,713.77,712.97,0.46000503]
[1737052261202,0.2802023,713.77,712.98,0.45998378]
[1737052261497,0.2802023,713.77,712.99,0.45998378]
[1737052261694,0.2802023,713.77,713.0,0.45998378]
[1737052261900,0.2802023,713.77,713.01,0.45998378]
[1737052262102,0.2802023,713.77,713.02,0.45998378]
[1737052262297,0.2802023,713.77,713.03,0.45998378]
[1737052262601,0.2802023,713.77,712.96,1.118]
[1737052262903,0.2802023,713.77,712.97,0.45949461]
[1737052263099,0.2802023,713.77,712.96,1.118]
[1737052263298,0.2802023,713.77,712.97,0.45926849]
[1737052263499,0.2802023,713.77,712.98,0.45926849]
[1737052263703,0.2802023,713.77,712.99,0.45926849]
[1737052263902,0.2802023,713.77,713.0,0.45926849]
[1737052264103,0.2802023,713.77,713.01,0.45926849]
[1737052264305,0.2802023,713.77,713.02,0.45926849]
[1737052264507,0.2802023,713.77,713.03,0.45926849]
[1737052264805,0.2802023,713.77,713.04,0.45926849]
[1737052265105,0.2802023,713.77,713.05,0.45926849]
[1737052265404,0.2802023,713.77,713.06,0.45926849]
[1737052265606,0.2802023,713.77,713.07,0.45926849]
[1737052265804,0.2802023,713.77,713.08,0.45926849]
[1737052266005,0.2802023,713.77,713.09,0.45926849]
[1737052266205,0.2802023,713.77,713.1,0.45926849]
[1737052266404,0.2802023,713.77,713.11,0.45926849]
[1737052266605,0.2802023,713.77,713.12,0.45926849]
[1737052266804,0.2802023,713.77,713.13,0.45926849]
[1737052267004,0.2802023,713.77,712.96,1.118]
[1737052267208,0.2802023,713.77,712.97,0.45827791]
[1737052267504,0.2802023,713.77,712.98,0.45827791]
[1737052267802,0.2802023,713.77,712.99,0.45827791]
[1737052268008,0.2802023,713.77,712.96,1.118]
[1737052268009,0.2802023,713.77,713.0,0.45827791]
[1737052268203,0.2802023,713.77,713.01,0.45827791]
[1737052268406,0.2802023,713.77,713.02,0.45827791]
[1737052268704,0.2802023,713.77,713.03,0.45827791]
[1737052268904,0.2802023,713.77,713.04,0.45827791]
[1737052269111,0.2802023,713.77,713.05,0.45827791]
[1737052269408,0.2802023,713.77,713.06,0.45827791]
[1737052269608,0.2802023,713.77,713.07,0.45827791]
[1737052269809,0.2802023,713.77,713.08,0.45827791]
[1737052270009,0.2802023,713.77,713.09,0.45827791]
[1737052270204,0.2802023,713.77,713.1,0.45827791]
[1737052270414,0.2802023,713.77,712.96,1.118]
[1737052270613,0.2802023,713.77,712.97,0.45739621]
[1737052270810,0.2802023,713.77,712.98,0.45739621]
[1737052271110,0.2802023,713.77,712.99,0.45739621]
[1737052271307,0.2802023,713.77,712.96,1.118]
[1737052271308,0.2802023,713.77,713.0,0.45739621]
[1737052271508,0.2802023,713.77,713.01,0.45739621]
[1737052271708,0.2802023,713.77,713.02,0.45739621]
[1737052271909,0.2802023,713.77,713.03,0.45739621]
[1737052272108,0.2802023,713.77,713.04,0.45739621]
[1737052272412,0.2802023,713.77,713.05,0.45739621]
[1737052272612,0.2802023,713.77,713.06,0.45739621]
[1737052272806,0.2802023,713.77,713.07,0.45739621]
[1737052273016,0.2802023,713.77,713.08,0.45739621]
[1737052273308,1.03841481,714.87,713.09,0.45739621]
[1737052273611,0.27977897,714.85,713.1,0.45739621]
[1737052273812,0.27977897,714.85,713.11,0.45739621]
[1737052274009,0.27977897,714.85,713.12,0.45739621]
[1737052274214,1.03841481,714.68,713.13,0.45739621]
[1737052274413,1.03841481,714.68,713.14,0.45739621]
[1737052274613,1.03841481,714.68,713.15,0.45739621]
[1737052274806,1.03841481,714.68,713.16,0.45739621]
[1737052275013,1.03841481,714.68,713.17,0.45739621]
[1737052275316,1.03841481,714.67,713.18,0.45739621]
[1737052275513,1.03841481,714.67,713.19,0.45739621]
[1737052275711,1.03841481,714.67,713.2,0.45739621]
[1737052275911,1.03841481,714.67,713.04,0.765]
[1737052275912,1.03841481,714.67,713.21,0.45739621]
[1737052276114,1.03841481,714.67,713.22,0.45739621]
[1737052276316,1.03841481,714.65,713.23,0.45739621]
[1737052276615,0.2798651,714.63,713.24,0.45739621]
[1737052276810,0.2798651,714.63,713.25,0.45739621]
[1737052277116,1.03841481,714.62,713.04,0.765]
[1737052277317,0.27987685,714.6,713.05,0.45614891]
[1737052277614,0.27987685,714.6,713.06,0.45614891]
[1737052277814,0.27987685,714.6,713.07,0.45614891]
[1737052278012,0.27987685,714.6,713.08,0.45614891]
[1737052278209,0.27987685,714.6,713.09,0.45614891]
[1737052278411,0.27987685,714.6,713.1,0.45592703]
[1737052278610,0.27987685,714.6,713.11,0.45592703]
[1737052278810,0.27987685,714.6,713.12,0.45592703]
[1737052279010,0.27987685,714.6,713.13,0.45592703]
[1737052279211,0.27987685,714.6,713.07,0.82]
[1737052279212,0.27987685,714.6,713.14,0.45592703]
[1737052279416,0.27987685,714.6,713.15,0.45592703]
[1737052279713,0.27987685,714.6,713.16,0.45592703]
[1737052279916,0.27987685,714.6,713.07,0.82]
[1737052280117,0.27987685,714.6,713.08,0.45585606]
[1737052280411,0.27987685,714.6,713.09,0.45585606]
[1737052280616,0.27987685,714.6,713.08,0.943]
[1737052281417,1.03841481,714.49,713.08,0.943]
[1737052281717,0.27992777,714.47,713.08,0.943]
[1737052282617,1.31834258,714.47,713.08,0.943]
[1737052283517,1.03841481,714.44,713.08,0.943]
[1737052284716,1.03841481,714.39,713.08,0.943]
[1737052285718,1.03841481,714.29,713.08,0.943]
[1737052286720,1.46340438,714.28,713.08,0.943]
[1737052287022,1.03841481,714.25,713.08,0.943]
[1737052288315,1.46340438,714.28,713.08,0.943]
[1737052288316,1.31843665,714.23,713.08,0.943]
[1737052288513,0.28002968,714.21,713.08,0.943]
[1737052289617,1.03841481,714.15,713.08,0.943]
[1737052289920,0.28006105,714.13,713.08,0.943]
[1737052290621,0.28006105,714.13,713.08,2.266]
[1737052290816,1.03841481,714.0,713.08,2.266]
[1737052291018,0.28011989,713.98,713.08,2.266]
[1737052292424,1.03841481,713.71,713.08,2.266]
[1737052292624,0.28022978,713.7,713.08,2.266]
[1737052293725,1.03841481,713.69,713.08,2.266]
[1737052294521,0.28022978,713.7,713.08,2.266]
[1737052294723,1.03841481,713.75,713.08,2.266]
[1737052294724,0.28023764,713.68,713.08,2.266]
[1737052305134,0.28023764,713.68,713.08,3.213]
[1737052310740,0.28023764,713.68,713.09,0.4597954]
[1737052311038,0.28023764,713.68,713.1,0.45977869]
[1737052311238,0.28023764,713.68,713.08,2.27]
[1737052311542,0.28023764,713.68,713.09,0.45991462]
[1737052311733,0.28023764,713.68,713.1,0.45991462]
[1737052312040,0.28023764,713.68,713.1,0.772]
[1737052312334,0.28023764,713.68,713.11,0.46005686]
[1737052312539,0.28023764,713.68,713.1,0.772]
[1737052312739,0.28023764,713.68,713.11,0.46006059]
[1737052312935,0.28023764,713.68,713.12,0.46006059]
[1737052313139,0.28023764,713.68,713.13,0.46006059]
[1737052313332,0.28023764,713.68,713.14,0.46006059]
[1737052313534,0.28023764,713.68,713.15,0.46006059]
[1737052313734,0.28023764,713.68,713.1,0.772]
[1737052314040,0.28023764,713.68,713.11,0.46016881]
[1737052314236,0.28023764,713.68,713.12,0.46016881]
[1737052314436,0.28023764,713.68,713.13,0.46016881]
[1737052314634,0.28023764,713.68,713.14,0.46016881]
[1737052314839,0.28023764,713.68,713.15,0.46016881]
[1737052315035,0.28023764,713.68,713.16,0.46016881]
[1737052315237,0.28023764,713.68,713.17,0.46016881]
[1737052315438,0.28023764,713.68,713.1,0.772]
[1737052315642,0.28023764,713.68,713.11,0.46050488]
[1737052315942,0.28023764,713.68,713.12,0.46050488]
[1737052316145,0.28023764,713.68,713.13,0.46050488]
[1737052316344,0.28023764,713.68,713.11,1.407]
[1737052316345,0.28023764,713.68,713.14,0.46050488]
[1737052316645,0.28023764,713.68,713.15,0.46050488]
[1737052316945,0.28023764,713.68,713.16,0.46050488]
[1737052317243,0.28023764,713.68,713.17,0.46050488]
[1737052317437,0.28023764,713.68,713.18,0.46050488]
[1737052317637,0.28023764,713.68,713.19,0.46050488]
[1737052317843,0.28023764,713.68,713.2,0.46050488]
[1737052318040,0.28023764,713.68,713.17,1.101]
[1737052318041,0.28023764,713.68,713.21,0.46050488]
[1737052318238,0.28023764,713.68,713.22,0.46064438]
[1737052318445,0.28023764,713.68,713.17,1.101]
[1737052318744,0.28023764,713.68,713.18,0.46065644]
[1737052318939,0.28023764,713.68,713.19,0.46065644]
[1737052319139,0.28023764,713.68,713.2,0.46065644]
[1737052319438,0.28023764,713.68,713.17,1.101]
[1737052319439,0.28023764,713.68,713.21,0.46065644]
[1737052319645,0.28023764,713.68,713.22,0.46065644]
[1737052319839,0.28023764,713.68,713.23,0.46065644]
[1737052320040,0.28023764,713.68,713.24,0.46065644]
[1737052320348,0.28023764,713.68,713.25,0.46064035]
[1737052320545,0.28023764,713.68,713.17,1.101]
[1737052320746,0.28023764,713.68,713.18,0.46063586]
[1737052320946,0.28023764,713.68,713.19,0.46063586]
[1737052321146,0.28023764,713.68,713.17,1.101]
[1737052321147,0.28023764,713.68,713.2,0.46063586]
[1737052321346,0.28023764,713.68,713.21,0.46063586]
[1737052321546,0.28023764,713.68,713.22,0.46063586]
[1737052321747,0.28023764,713.68,713.17,1.101]
[1737052321950,0.28023764,713.68,713.18,0.4606382]
[1737052322150,0.28023764,713.68,713.19,0.4606382]
[1737052322447,0.28023764,713.68,713.2,0.4606551]
[1737052322647,0.28023764,713.68,713.17,1.101]
[1737052327347,1.03841481,713.67,713.17,1.101]
[1737052328452,0.28023764,713.68,713.17,1.101]
[1737052330646,1.31865245,713.68,713.17,1.101]
[1737052332647,0.28023764,713.68,713.17,1.101]
[1737052333054,0.28023764,713.68,713.17,1.988]
[1737052334054,1.03841481,713.61,713.17,1.988]
[1737052335155,1.03841481,713.62,713.17,1.988]
[1737052336156,0.28023764,713.68,713.17,1.988]
[1737052340364,0.28023764,713.68,713.17,2.918]
[1737052350872,1.03841481,713.61,713.17,2.918]
[1737052353070,1.03841481,713.63,713.17,2.918]
[1737052355272,1.03841481,713.61,713.17,2.918]
[1737052356473,1.03841481,713.6,713.17,2.918]
[1737052357667,1.03841481,713.55,713.17,2.918]
[1737052358772,1.03841481,713.58,713.17,2.918]
[1737052360073,1.03841481,713.55,713.17,2.918]
[1737052361270,1.03841481,713.37,713.17,2.918]
[1737052362773,1.03841481,713.31,713.17,2.918]
[1737052364376,1.03841481,713.52,713.17,2.918]
[1737052365170,0.28030441,713.51,713.17,2.918]
[1737052365376,1.03841481,713.49,713.17,2.918]
[1737052366175,1.31871922,713.51,713.17,2.918]
[1737052367177,0.28030441,713.51,713.17,2.918]
[1737052368372,1.03841481,713.49,713.17,2.918]
[1737052368576,0.28031619,713.48,713.17,2.918]
[1737052377276,0.28031619,713.48,713.17,1.192]
[1737052378081,0.28031619,713.48,713.17,0.492]
[1737052378277,0.28031619,713.48,711.9,1.04635971]
[1737052378483,0.28031619,713.48,713.17,1.105]
[1737052378678,0.28031619,713.48,711.91,0.28093438]
[1737052378882,0.28031619,713.48,711.92,0.71828582]
[1737052379184,0.28031619,713.48,711.93,0.71828582]
[1737052379378,0.28031619,713.48,711.94,0.99920836]
[1737052379583,0.28031619,713.48,711.95,0.99920442]
[1737052379782,0.28031619,713.48,711.96,0.71828582]
[1737052379986,0.28031619,713.48,711.97,0.71828124]
[1737052380186,0.28031619,713.48,711.98,0.71828124]
[1737052380385,0.28031619,713.48,711.99,0.71828124]
[1737052380582,0.28031619,713.48,712.0,0.71828124]
[1737052380789,0.28031619,713.48,712.01,0.71828124]
[1737052380985,0.28031619,713.48,712.02,0.71828124]
[1737052381186,0.28031619,713.48,712.03,0.71828124]
[1737052381387,0.28031619,713.48,712.04,0.46039856]
[1737052381581,0.28031619,713.48,712.05,0.46039856]
[1737052381787,0.28031619,713.48,712.06,0.46039856]
[1737052381985,0.28031619,713.48,712.07,0.46039856]
[1737052382186,0.28031619,713.48,712.08,0.46039856]
[1737052382386,0.28031619,713.48,712.09,0.46039856]
[1737052382585,0.28031619,713.48,712.1,0.46039856]
[1737052382784,0.28031619,713.48,712.11,0.46039856]
[1737052382986,0.28031619,713.48,711.96,1.054]
[1737052382987,0.28031619,713.48,712.12,0.46039856]
[1737052383187,0.28031619,713.48,712.13,0.46039856]
[1737052383389,0.28031619,713.48,712.14,0.46039856]
[1737052383589,1.03841481,713.4,712.15,0.46039856]
[1737052383789,0.28035156,713.39,712.16,0.46039856]
[1737052383990,0.28035156,713.39,712.17,0.46039856]
[1737052384185,0.28035156,713.39,712.18,0.46039856]
[1737052384388,0.28035156,713.39,712.19,0.46039856]
[1737052384689,0.28035156,713.39,712.2,0.46039856]
[1737052384891,0.28035156,713.39,712.21,0.46039856]
[1737052385092,0.28035156,713.39,712.22,0.46039856]
[1737052385285,0.28035156,713.39,712.23,0.46039856]
[1737052385482,0.28035156,713.39,712.24,0.46039856]
[1737052385684,0.28035156,713.39,712.25,0.46039856]
[1737052385886,0.28035156,713.39,712.26,0.46039856]
[1737052386085,0.28035156,713.39,712.27,0.46039856]
[1737052386291,0.28035156,713.39,711.96,1.054]
[1737052386592,0.28035156,713.39,711.97,0.71828248]
[1737052386788,0.28035156,713.39,711.96,1.054]
[1737052386789,0.28035156,713.39,711.98,0.71828248]
[1737052386987,0.28035156,713.39,711.99,0.71828248]
[1737052387191,0.28035156,713.39,712.0,0.71828248]
[1737052387391,0.28035156,713.39,712.01,0.71825851]
[1737052387694,0.28035156,713.39,712.02,0.71825851]
[1737052387986,0.28035156,713.39,712.03,0.4603699]
[1737052388191,0.28035156,713.39,712.04,0.4603699]
[1737052388393,0.28035156,713.39,712.05,0.4603699]
[1737052388594,0.28035156,713.39,712.06,0.4603699]
[1737052388887,0.28035156,713.39,712.07,0.4603699]
[1737052389086,0.28035156,713.39,711.96,1.054]
[1737052389087,0.28035156,713.39,712.08,0.4603699]
[1737052389285,0.28035156,713.39,712.09,0.4603699]
[1737052389590,0.28035156,713.39,712.1,0.4603699]
[1737052389887,0.28035156,713.39,712.11,0.4603699]
[1737052390094,0.28035156,713.39,712.12,0.4603699]
[1737052390286,0.28035156,713.39,712.13,0.4603699]
[1737052390489,0.28035156,713.39,712.14,0.4603699]
[1737052390690,0.28035156,713.39,712.15,0.4603699]
[1737052390890,0.28035156,713.39,712.16,0.4603699]
[1737052391094,0.28035156,713.39,712.17,0.4603699]
[1737052391293,0.28035156,713.39,712.18,0.4603699]
[1737052391591,1.31876637,713.39,712.19,0.4603699]
[1737052391787,1.31876637,713.39,712.2,0.4603699]
[1737052391992,1.31876637,713.39,712.21,0.4603699]
[1737052392193,1.31876637,713.39,712.22,0.4603699]
[1737052392493,1.31876637,713.39,712.23,0.4603699]
[1737052392695,1.31876637,713.39,712.24,0.4603699]
[1737052392894,1.03841481,713.36,712.25,0.4603699]
[1737052393087,1.03841481,713.36,712.26,0.4603699]
[1737052393288,1.03841481,713.36,712.27,0.4603699]
[1737052393487,1.03841481,713.36,712.28,0.4603699]
[1737052393695,1.03841481,713.36,712.29,0.4603699]
[1737052393890,1.03841481,713.36,711.96,1.054]
[1737052394093,1.03841481,713.25,711.97,0.45999184]
[1737052394294,1.03841481,713.25,711.98,0.45999184]
[1737052394495,1.03841481,713.25,711.99,0.45999184]
[1737052394790,1.03841481,713.25,712.0,0.45999184]
[1737052394994,1.03841481,713.25,712.01,0.45999184]
[1737052395193,1.03841481,713.1,712.02,0.45999184]
[1737052395394,1.03841481,713.1,712.03,0.45999184]
[1737052395595,1.03841481,713.1,712.04,0.45999184]
[1737052395798,1.03841481,713.1,712.05,0.45999184]
[1737052395998,1.03841481,713.1,712.06,0.45999184]
[1737052396193,1.03841481,713.1,712.07,0.45999184]
[1737052396489,1.03841481,713.32,712.08,0.45999184]
[1737052396490,1.03841481,713.09,712.08,0.45999184]
[1737052396690,1.03841481,713.09,712.09,0.45999184]
[1737052396995,1.03841481,713.09,712.1,0.45999184]
[1737052397191,1.03841481,713.11,712.11,0.45999184]
[1737052397388,1.03841481,713.11,712.12,0.45999184]
[1737052397594,1.03841481,713.11,712.13,0.45999184]
[1737052397795,1.03841481,713.11,712.14,0.45999184]
[1737052398091,1.03841481,713.11,712.15,0.45999184]
[1737052398295,1.03841481,713.15,712.16,0.45999184]
[1737052398495,0.28044984,713.14,712.17,0.45999184]
[1737052398693,0.28044984,713.14,712.18,0.45999184]
[1737052398895,0.28044984,713.14,712.19,0.4593984]
[1737052399190,0.28044984,713.14,712.2,0.4593984]
[1737052399396,0.28044984,713.14,712.21,0.4593984]
[1737052399593,0.28044984,713.14,712.22,0.4593984]
[1737052399796,0.28044984,713.14,712.23,0.4593984]
[1737052400098,0.28044984,713.14,712.24,0.4593984]
[1737052400397,0.28044984,713.14,712.25,0.4593984]
[1737052400697,0.28044984,713.14,712.1,0.892]
[1737052400698,0.28044984,713.14,712.26,0.4593984]
[1737052400999,0.28044984,713.14,712.1,0.892]
[1737052401197,0.28044984,713.14,712.11,0.45927262]
[1737052401497,0.28044984,713.14,712.12,0.45927262]
[1737052401693,0.28044984,713.14,712.13,0.45927262]
[1737052401998,0.28044984,713.14,712.14,0.45927262]
[1737052402297,0.28044984,713.14,712.15,0.45927262]
[1737052402498,0.28044984,713.14,712.16,0.45927262]
[1737052402699,0.28044984,713.14,712.17,0.45927262]
[1737052403000,0.28044984,713.14,712.18,0.45927262]
[1737052403193,0.28044984,713.14,712.1,0.892]
[1737052403194,0.28044984,713.14,712.19,0.4591984]
[1737052403399,0.28044984,713.14,712.2,0.4591984]
[1737052403598,0.28044984,713.14,712.21,0.4591984]
[1737052403795,0.28044984,713.14,712.22,0.4591984]
[1737052404502,0.28044984,713.14,712.23,0.4591984]
[1737052404701,0.28044984,713.14,712.24,0.4591984]
[1737052404905,0.28044984,713.14,712.25,0.4591984]
[1737052405106,0.28044984,713.14,712.26,0.4591984]
[1737052405297,0.28044984,713.14,712.27,0.4591984]
[1737052405497,0.28044984,713.14,712.28,0.4591984]
[1737052405697,0.28044984,713.14,712.29,0.4591984]
[1737052405901,0.28044984,713.14,712.21,0.858]
[1737052406105,0.28044984,713.14,712.22,0.45931553]
[1737052406304,0.28044984,713.14,712.23,0.45931553]
[1737052406506,0.28044984,713.14,712.24,0.45931553]
[1737052406799,0.28044984,713.14,712.25,0.45931553]
[1737052407000,0.28044984,713.14,712.26,0.45931553]
[1737052407202,0.28044984,713.14,712.21,0.858]
[1737052407203,0.28044984,713.14,712.27,0.45931553]
[1737052407403,0.28044984,713.14,712.28,0.45931553]
[1737052410702,0.28044984,713.14,712.27,0.761]
[1737052410907,0.28044984,713.14,712.28,0.45961655]
[1737052411108,0.28044984,713.14,712.29,0.45961655]
[1737052411403,0.28044984,713.14,712.3,0.45961655]
[1737052411601,0.28044984,713.14,712.31,0.45961655]
[1737052411802,0.28044984,713.14,712.32,0.45961655]
[1737052412008,0.28044984,713.14,712.33,0.45961655]
[1737052412208,0.28044984,713.14,712.34,0.45961655]
[1737052412509,0.28044984,713.14,712.35,0.45961655]
[1737052412702,0.28044984,713.14,712.36,0.45980978]
[1737052412904,0.28044984,713.14,712.37,0.45980978]
[1737052413106,0.28044984,713.14,712.38,0.45980978]
[1737052413302,0.28044984,713.14,712.39,0.45980978]
[1737052413611,0.28044984,713.14,712.4,0.45980978]
[1737052413808,0.28044984,713.14,712.41,0.45980978]
[1737052414009,0.28044984,713.14,712.42,0.45980978]
[1737052414308,0.28044984,713.14,712.43,0.45980978]
[1737052414503,0.28044984,713.14,712.44,0.45980978]
[1737052414807,0.28044984,713.14,712.45,0.45980978]
[1737052415002,0.28044984,713.14,712.46,0.45980978]
[1737052415205,0.28044984,713.14,712.47,0.45980978]
[1737052415406,0.28044984,713.14,712.48,0.45980978]
[1737052415607,0.28044984,713.14,712.49,0.45980978]
[1737052415808,0.28044984,713.14,712.27,0.761]
[1737052416009,0.28044984,713.14,712.28,0.46017482]
[1737052416210,0.28044984,713.14,712.29,0.46017482]
[1737052416410,0.28044984,713.14,712.3,0.46017482]
[1737052416605,0.28044984,713.14,712.31,0.46017482]
[1737052416805,0.28044984,713.14,712.32,0.46017482]
[1737052417003,0.28044984,713.14,712.33,0.46017482]
[1737052417202,0.28044984,713.14,712.34,0.46017482]
[1737052417410,0.28044984,713.14,712.35,0.46017482]
[1737052417608,0.28044984,713.14,712.36,0.46017482]
[1737052417803,0.28044984,713.14,712.37,0.46017482]
[1737052418011,0.28044984,713.14,712.38,0.46017482]
[1737052418203,0.28044984,713.14,712.39,0.46017482]
[1737052418409,0.28044984,713.14,712.4,0.46017482]
[1737052418711,0.28044984,713.14,712.41,0.46017482]
[1737052419011,0.28044984,713.14,712.42,0.46017482]
[1737052419210,0.28044984,713.14,712.43,0.46017482]
[1737052419512,0.28044984,713.14,712.44,0.46017482]
[1737052419807,0.28044984,713.14,712.45,0.46017482]
[1737052420005,0.28044984,713.14,712.46,0.46017482]
[1737052420208,0.28044984,713.14,712.47,0.46082004]
[1737052420508,1.03841481,713.67,712.48,0.46082004]
[1737052420708,0.28024549,713.66,712.49,0.46082004]
[1737052420908,0.28024549,713.66,712.5,0.46082004]
[1737052421109,0.28024549,713.66,712.48,1.393]
[1737052421110,0.28024549,713.66,712.51,0.46082004]
[1737052421308,0.28024549,713.66,712.52,0.46082004]
[1737052421510,0.28024549,713.66,712.53,0.46082004]
[1737052421708,0.28024549,713.66,712.48,1.393]
[1737052421709,0.28024549,713.66,712.54,0.46082004]
[1737052421909,0.28024549,713.66,712.55,0.46082004]
[1737052422110,0.28024549,713.66,712.56,0.46082004]
[1737052422307,0.28024549,713.66,712.57,0.46082004]
[1737052422511,0.28024549,713.66,712.48,1.393]
[1737052422512,0.28024549,713.66,712.58,0.46082004]
[1737052422712,0.28024549,713.66,712.59,0.46082004]
[1737052422913,0.28024549,713.66,712.6,0.46082004]
[1737052423111,0.28024549,713.66,712.61,0.46082004]
[1737052423306,0.28024549,713.66,712.62,0.46082004]
[1737052423512,0.28024549,713.66,712.63,0.46082004]
[1737052423710,0.28024549,713.66,712.64,0.46082004]
[1737052423911,0.28024549,713.66,712.65,0.46082004]
[1737052424110,0.28024549,713.66,712.66,0.46082004]
[1737052424311,0.28024549,713.66,712.67,0.46082004]
[1737052424512,0.28024549,713.66,712.68,0.46082004]
[1737052424813,0.28024549,713.66,712.69,0.46082004]
[1737052425007,0.28024549,713.66,712.7,0.46082004]
[1737052425210,0.28024549,713.66,712.71,0.46082004]
[1737052425409,0.28024549,713.66,712.72,0.46082004]
[1737052425605,0.28024549,713.66,712.73,0.46082004]
[1737052425813,0.28024549,713.66,712.48,1.393]
[1737052426013,0.28024549,713.66,712.49,0.46054886]
[1737052426209,0.28024549,713.66,712.5,0.46054886]
[1737052426414,0.28024549,713.66,712.48,1.393]
[1737052426415,0.28024549,713.66,712.51,0.46054886]
[1737052426615,0.28024549,713.66,712.52,0.46054886]
[1737052426815,0.28024549,713.66,712.53,0.46054886]
[1737052427016,0.28024549,713.66,712.54,0.46054886]
[1737052427209,0.28024549,713.66,712.55,0.46054886]
[1737052427415,0.28024549,713.66,712.56,0.46054886]
[1737052427618,0.28024549,713.66,712.57,0.46054886]
[1737052427817,0.28024549,713.66,712.58,0.46054886]
[1737052428018,0.28024549,713.66,712.59,0.46054886]
[1737052428218,0.28024549,713.66,712.6,0.46054886]
[1737052428418,0.28024549,713.66,712.61,0.46054886]
[1737052428620,0.28024549,713.66,712.62,0.46054886]
[1737052428921,0.28024549,713.66,712.63,0.46054886]
[1737052429118,0.28024549,713.66,712.64,0.46054886]
[1737052429321,0.28024549,713.66,712.65,0.46054886]
[1737052429522,0.28024549,713.66,712.66,0.46054886]
[1737052429718,0.28024549,713.66,712.67,0.46054886]
[1737052429919,0.28024549,713.66,712.68,0.46054886]
[1737052430123,0.28024549,713.66,712.69,0.46054886]
[1737052430424,0.28024549,713.66,712.7,0.46054886]
[1737052430723,0.28024549,713.66,712.71,0.46054886]
[1737052430923,0.28024549,713.66,712.72,0.46054886]
[1737052431125,0.28024549,713.66,712.73,0.46054886]
[1737052431421,0.28024549,713.66,712.74,0.46054886]
[1737052431724,0.28024549,713.66,712.58,0.821]
[1737052431923,0.28024549,713.66,712.59,0.46003976]
[1737052432124,0.28024549,713.66,712.58,0.821]
[1737052432125,0.28024549,713.66,712.6,0.46003976]
[1737052432323,0.28024549,713.66,712.61,0.46003976]
[1737052432523,0.28024549,713.66,712.62,0.46003976]
[1737052432723,0.28024549,713.66,712.63,0.46003976]
[1737052432920,0.28024549,713.66,712.64,0.46003976]
[1737052433122,0.28024549,713.66,712.65,0.46003976]
[1737052433325,0.28024549,713.66,712.66,0.46003976]
[1737052433626,0.28024549,713.66,712.67,0.46003976]
[1737052433928,0.28024549,713.66,712.68,0.46003976]
[1737052434125,0.28024549,713.66,712.69,0.46003976]
[1737052434319,0.28024549,713.66,712.7,0.46003976]
[1737052434523,0.28024549,713.66,712.71,0.46003976]
[1737052434719,0.28024549,713.66,712.72,0.46003976]
[1737052434926,0.28024549,713.66,712.73,0.46003976]
[1737052435119,0.28024549,713.66,712.74,0.45985557]
[1737052435323,0.28024549,713.66,712.75,0.45985557]
[1737052435625,0.28024549,713.66,712.58,0.821]
[1737052435827,0.28024549,713.66,712.59,0.45977261]
[1737052436020,0.28024549,713.66,712.6,0.45977261]
[1737052436222,0.28024549,713.66,712.61,0.45977261]
[1737052436428,0.28024549,713.66,712.62,0.45977261]
[1737052436628,0.28024549,713.66,712.63,0.45977261]
[1737052436821,0.28024549,713.66,712.64,0.45977261]
[1737052437027,0.28024549,713.66,712.65,0.45977261]
[1737052437224,0.28024549,713.66,712.66,0.45977261]
[1737052437524,0.28024549,713.66,712.58,0.821]
[1737052437525,0.28024549,713.66,712.67,0.45977261]
[1737052437724,0.28024549,713.66,712.68,0.45977261]
[1737052437921,0.28024549,713.66,712.69,0.45977261]
[1737052438126,0.28024549,713.66,712.7,0.45977261]
[1737052438427,0.28024549,713.66,712.71,0.45977261]
[1737052438623,0.28024549,713.66,712.72,0.45977261]
[1737052438831,0.28024549,713.66,712.73,0.45977261]
[1737052439128,0.28024549,713.66,712.74,0.45977261]
[1737052439429,0.28024549,713.66,712.75,0.45977261]
[1737052439622,0.28024549,713.66,712.76,0.45977261]
[1737052439826,0.28024549,713.66,712.77,0.45977261]
[1737052440027,0.28024549,713.66,712.78,0.45977261]
[1737052440222,0.28024549,713.66,712.79,0.45977261]
[1737052440427,0.28024549,713.66,712.8,0.45977261]
[1737052440622,0.28024549,713.66,712.81,0.45977261]